bitfinex-derivatives/quotes_ETHF0:USTF0_20240905
["timestamp","ask_amount","ask_price","bid_price","bid_amount"]
[1725516601523,4.69846,2408.4,2408.3,0.00622652]
[1725516601824,0.29072,2408.0,2407.4,0.29077]
[1725516602026,1.2,2407.7,2407.5,0.3639]
[1725516602526,1.2,2407.7,2407.3,0.7677]
[1725516602717,1.2,2407.7,2407.3,0.77392652]
[1725516602914,1.2,2407.7,2407.3,1.06471652]
[1725516603113,1.2,2407.8,2407.4,0.29077]
[1725516603328,1.2,2407.8,2407.4,0.29078]
[1725516603921,3.6246,2407.9,2407.4,0.29078]
[1725516604320,3.91532,2407.9,2407.3,1.06471652]
[1725516604921,3.91532,2407.9,2407.4,0.29078]
[1725516604922,3.6246,2407.9,2407.4,0.29078]
[1725516605321,2.87,2407.5,2407.3,0.00622652]
[1725516605519,0.377,2407.4,2407.3,0.00622652]
[1725516605725,3.87558,2407.4,2407.3,0.00622652]
[1725516606026,3.87558,2407.4,2406.9,0.7481]
[1725516606027,0.2908,2407.3,2406.9,0.7481]
[1725516606334,3.9409,2407.4,2406.9,0.7481]
[1725516606335,7.10168,2407.4,2406.9,0.7481]
[1725516606830,0.29079,2407.3,2406.9,0.7481]
[1725516607130,0.29701652,2407.3,2406.9,0.75432652]
[1725516607425,2.87,2407.1,2406.9,0.00622652]
[1725516607619,2.87,2407.0,2406.9,0.00622652]
[1725516608820,7.31523,2407.0,2406.9,0.00622652]
[1725516610134,2.87,2407.0,2406.9,0.00622652]
[1725516610330,7.0244,2407.0,2406.9,0.00622652]
[1725516610518,2.87,2407.0,2406.9,0.00622652]
[1725516611432,3.2078,2407.1,2406.9,0.00622652]
[1725516612029,2.87,2407.0,2406.9,0.00622652]
[1725516612225,7.31523,2407.0,2406.9,0.00622652]
[1725516612422,7.0244,2407.0,2406.9,0.00622652]
[1725516612622,7.31523,2407.0,2406.9,0.00622652]
[1725516615726,7.0244,2407.0,2406.9,0.00622652]
[1725516616133,7.31523,2407.0,2406.9,0.00622652]
[1725516616530,7.0244,2407.0,2406.9,0.00622652]
[1725516618036,7.70503,2407.0,2406.9,0.00622652]
[1725516620235,3.2598,2407.0,2406.9,0.00622652]
[1725516621042,3.55063,2407.0,2406.9,0.00622652]
[1725516624847,3.2598,2407.0,2406.9,0.00622652]
[1725516625039,3.49862,2407.1,2406.9,0.00622652]
[1725516625040,3.2078,2407.1,2406.9,0.00622652]
[1725516625240,2.87,2407.0,2406.9,0.00622652]
[1725516625444,3.16083,2407.0,2406.9,0.00622652]
[1725516626235,7.31523,2407.0,2406.9,0.00622652]
[1725516626444,3.16083,2407.0,2406.9,0.00622652]
[1725516626748,13.31523,2407.0,2406.9,0.00622652]
[1725516627740,7.31523,2407.0,2406.9,0.00622652]
[1725516627941,3.16083,2407.0,2406.9,0.00622652]
[1725516633952,0.72711,2406.9,2405.6,3.2078]
[1725516634148,2.87,2406.2,2406.1,0.749]
[1725516634555,2.87,2406.2,2406.1,0.3709]
[1725516638464,0.3727,2406.4,2406.1,0.3709]
[1725516638465,2.87,2406.4,2406.1,0.3709]
[1725516638669,2.87,2406.7,2406.2,0.3924]
[1725516638859,3.16087,2406.7,2406.3,0.29091]
[1725516639164,2.87,2406.6,2406.3,0.29091]
[1725516639366,2.87,2406.6,2406.2,1.05482]
[1725516639959,3.16088,2406.6,2406.2,1.05482]
[1725516640164,2.87,2406.6,2406.2,1.05482]
[1725516640368,2.87,2406.6,2406.3,0.29091]
[1725516642361,3.16088,2406.6,2406.3,0.29091]
[1725516642561,2.87,2406.6,2406.2,1.05482]
[1725516642769,2.87,2406.4,2406.2,0.7639]
[1725516645965,2.87,2406.4,2406.2,1.05482]
[1725516646271,2.87,2406.4,2406.2,0.7639]
[1725516646457,2.87,2406.4,2406.2,1.05481]
[1725516647867,2.87,2406.4,2406.3,0.29091]
[1725516648068,2.87,2406.6,2406.3,0.29091]
[1725516648266,3.16088,2406.6,2406.2,1.05482]
[1725516649667,2.87,2406.6,2406.3,0.29091]
[1725516650866,2.87,2406.6,2406.4,0.29089]
[1725516652762,2.87,2406.6,2406.3,0.29091]
[1725516652957,3.16088,2406.6,2406.3,0.29091]
[1725516653169,2.87,2406.6,2406.3,0.29091]
[1725516653466,2.87,2406.6,2406.2,1.05482]
[1725516653674,2.87,2406.6,2406.3,0.29091]
[1725516656374,2.87,2406.6,2406.2,1.05482]
[1725516656776,2.87,2406.6,2406.3,0.29091]
[1725516657969,2.87,2406.6,2406.2,1.05482]
[1725516657970,1.2,2406.4,2406.2,1.05482]
[1725516659677,1.2,2406.4,2406.3,0.29091]
[1725516659981,1.2,2406.4,2406.2,1.05482]
[1725516660374,1.2,2406.4,2406.3,0.29091]
[1725516660677,1.2,2406.4,2406.2,0.7639]
[1725516660881,0.29091,2406.3,2406.2,0.3715]
[1725516661074,0.66701,2406.3,2406.2,0.3715]
[1725516661283,1.05981,2406.3,2406.2,0.3715]
[1725516661481,1.05981,2406.3,2405.9,0.29718652]
[1725516661685,1.2,2406.2,2406.0,0.3739]
[1725516662578,0.3761,2406.3,2406.0,0.3739]
[1725516662778,1.2,2406.4,2406.1,0.29093]
[1725516663779,1.2,2406.4,2406.2,0.29092]
[1725516663978,1.2,2406.4,2406.3,0.7353]
[1725516665877,1.2,2406.4,2406.3,1.02621]
[1725516666085,0.717,2406.7,2406.3,0.7353]
[1725516666280,1.2,2406.6,2406.4,0.3676]
[1725516666578,1.2,2406.6,2406.4,0.6585]
[1725516666984,1.2,2406.6,2406.4,0.3676]
[1725516667481,1.2,2406.6,2406.4,0.65849]
[1725516668383,1.2,2406.6,2406.5,0.29089]
[1725516669281,1.2,2406.6,2406.4,0.3676]
[1725516669282,1.2,2406.7,2406.6,0.29088]
[1725516670279,1.2,2406.9,2406.8,0.29085]
[1725516670480,0.3937,2407.2,2407.0,0.29083]
[1725516670676,1.2,2407.1,2407.0,0.29083]
[1725516670877,1.2,2407.2,2407.1,0.29081]
[1725516671075,1.2,2407.2,2407.1,1.02061]
[1725516671677,1.2,2407.2,2407.1,0.7298]
[1725516672171,2.87,2407.2,2407.1,0.7298]
[1725516673885,7.0244,2407.2,2406.8,0.3573]
[1725516674088,0.37042652,2407.3,2407.0,0.29082]
[1725516674383,0.37042652,2407.3,2406.8,0.3573]
[1725516674384,2.87622652,2407.3,2406.8,0.3573]
[1725516674580,0.00622652,2407.3,2406.8,0.3573]
[1725516674780,0.00622652,2407.3,2407.1,0.29081]
[1725516674975,0.00622652,2407.3,2406.7,45.84507162]
[1725516674976,0.00622652,2407.3,2407.2,1.4362]
[1725516675179,2.87,2407.6,2407.5,0.29077]
[1725516675590,3.16073,2407.9,2407.5,0.29077]
[1725516675787,3.16073,2407.9,2407.6,0.7768]
[1725516676688,2.87,2407.9,2407.6,0.7768]
[1725516677781,3.59042652,2408.0,2407.6,0.7768]
[1725516677983,3.59042652,2408.0,2407.7,0.388]
[1725516678188,2.87,2407.9,2407.7,0.388]
[1725516678389,2.87,2407.9,2407.7,0.67874]
[1725516680687,3.59042652,2408.0,2407.7,0.67874]
[1725516680889,6.46042652,2408.0,2407.7,0.67874]
[1725516681991,2.87,2407.8,2407.6,0.393]
[1725516682293,2.87,2407.8,2407.6,0.68375]
[1725516682492,2.87,2407.8,2407.7,0.29074]
[1725516682792,6.08402652,2408.0,2407.7,0.29074]
[1725516683793,6.08402652,2408.0,2407.8,0.29073]
[1725516684102,3.21402652,2408.0,2407.9,0.66152]
[1725516685181,3.21402652,2408.0,2407.9,0.3708]
[1725516685392,6.08402652,2408.0,2407.9,0.66152]
[1725516687091,6.08402652,2408.0,2407.6,0.393]
[1725516687092,6.37473652,2408.0,2407.6,0.393]
[1725516687395,6.08402652,2408.0,2407.7,0.29074]
[1725516687594,6.08402652,2408.0,2407.8,0.3638]
[1725516688688,2.87622652,2408.0,2407.8,0.3638]
[1725516689087,2.87622652,2408.0,2407.9,0.29072]
[1725516691397,2.87622652,2408.0,2407.8,0.65452]
[1725516691997,1.2,2407.9,2407.8,0.65452]
[1725516692202,3.21402652,2408.0,2407.7,0.29074]
[1725516692399,1.2,2407.8,2407.7,0.29074]
[1725516692806,0.00622652,2408.0,2407.9,0.29072]
[1725516700305,0.38352652,2408.0,2407.9,0.29072]
[1725516700902,0.00622652,2408.0,2407.9,0.29072]
[1725516702101,3.2078,2408.3,2408.2,0.29068]
[1725516702417,1.2,2408.6,2408.4,0.29065]
[1725516702609,3.2078,2408.7,2408.6,0.29063]
[1725516703021,3.2078,2408.7,2408.2,1.5751]
[1725516703022,0.7493,2409.0,2408.4,1.2]
[1725516703216,0.7493,2409.0,2408.2,3.5829]
[1725516703217,0.00622652,2408.9,2408.8,0.2906]
[1725516704506,0.00622652,2408.9,2408.7,0.29062]
[1725516705112,1.2,2408.8,2408.6,0.67783]
[1725516705317,1.2,2408.8,2408.7,0.29062]
[1725516705613,1.2,2408.8,2408.6,0.3872]
[1725516706016,0.00622652,2408.9,2408.7,0.29062]
[1725516706309,0.00622652,2408.9,2408.6,0.3872]
[1725516706510,0.00622652,2408.9,2408.6,0.67783]
[1725516706713,0.00622652,2408.9,2408.7,0.29062]
[1725516708105,0.00622652,2408.9,2408.7,0.65592]
[1725516713415,0.00622652,2408.9,2408.8,0.29061]
[1725516713613,1.4516,2411.3,2408.8,10.229]
[1725516713614,0.3842,2409.8,2408.8,10.229]
[1725516713926,0.3842,2409.8,2409.5,0.29052]
[1725516714216,3.2542,2409.8,2409.5,0.29052]
[1725516715315,3.2542,2409.8,2409.4,0.00622652]
[1725516715316,3.49831,2409.7,2409.4,0.00622652]
[1725516717623,3.16052,2409.6,2409.4,0.00622652]
[1725516717827,0.29053,2409.5,2409.4,0.00622652]
[1725516718023,0.67163,2409.5,2409.4,0.00622652]
[1725516719019,0.3811,2409.5,2409.4,0.00622652]
[1725516720733,3.2078,2409.7,2409.4,0.00622652]
[1725516721034,3.4983,2409.7,2409.4,0.00622652]
[1725516721222,3.2078,2409.7,2409.4,0.00622652]
[1725516721421,0.29053,2409.5,2409.4,0.00622652]
[1725516725623,4.44093,2409.5,2409.4,0.00622652]
[1725516727526,13.31093,2409.5,2408.3,3.2078]
[1725516727719,3.16057,2409.2,2408.7,0.29062]
[1725516728321,3.2078,2409.1,2408.5,1.1389]
[1725516728626,3.49838,2409.1,2408.6,0.29685652]
[1725516728824,0.3759,2409.0,2408.6,0.00622652]
[1725516729023,0.3659,2408.9,2408.6,0.00622652]
[1725516729327,3.49841,2408.8,2408.6,0.00622652]
[1725516729527,3.2078,2408.8,2408.6,0.00622652]
[1725516730030,3.49841,2408.8,2408.6,0.00622652]
[1725516731122,3.2078,2408.8,2408.6,0.00622652]
[1725516731627,3.49842,2408.8,2408.6,0.00622652]
[1725516732023,0.29062,2408.7,2408.6,0.00622652]
[1725516734627,0.29068,2408.3,2407.8,0.29073]
[1725516734830,0.382,2408.2,2407.9,0.3905]
[1725516735035,0.7555,2408.2,2407.9,0.3905]
[1725516735227,1.04618,2408.2,2407.9,0.3905]
[1725516735527,0.7555,2408.2,2407.9,0.3905]
[1725516735718,0.7555,2408.2,2407.9,0.68122]
[1725516736319,0.00622652,2408.3,2407.9,0.3905]
[1725516736526,0.00622652,2408.3,2408.2,0.29068]
[1725516736737,0.00622652,2408.3,2408.1,0.29069]
[1725516736928,0.00622652,2408.3,2408.2,0.3875]
[1725516737631,0.00622652,2408.3,2408.2,0.67818]
[1725516737832,0.00622652,2408.3,2408.2,4.83018]
[1725516740532,4.15822652,2408.3,2407.9,0.3905]
[1725516740732,2.87,2408.1,2407.9,0.3905]
[1725516740935,3.16069,2408.2,2407.9,0.3905]
[1725516742228,2.87,2408.2,2407.9,0.3905]
[1725516743038,0.00622652,2408.3,2407.9,0.3905]
[1725516744437,2.87,2408.2,2407.9,0.3905]
[1725516746232,6.36849,2408.2,2407.9,0.3905]
[1725516746434,0.00622652,2408.3,2407.8,0.00622652]
[1725516746635,0.00622652,2408.3,2407.9,0.7674]
[1725516748036,0.29689652,2408.3,2407.9,0.7674]
[1725516748238,3.16068,2408.2,2407.9,0.7674]
[1725516748537,6.36848,2408.2,2407.9,0.7674]
[1725516748933,6.0778,2408.2,2407.9,0.7674]
[1725516749244,6.36848,2408.2,2407.9,0.7674]
[1725516749738,6.0778,2408.2,2407.9,0.7674]
[1725516750543,0.29689652,2408.3,2407.9,0.7674]
[1725516751433,0.00622652,2408.3,2407.9,0.7674]
[1725516751830,0.00622652,2408.3,2408.0,0.29071]
[1725516752236,0.00622652,2408.3,2408.1,0.3707]
[1725516752439,0.00622652,2408.3,2408.2,0.29068]
[1725516752648,0.00622652,2408.3,2408.2,4.1528]
[1725516752945,0.00622652,2408.3,2408.2,4.44348]
[1725516753637,0.00622652,2408.3,2408.2,7.65128]
[1725516755147,0.00622652,2408.3,2408.2,4.44348]
[1725516755849,0.00622652,2408.3,2408.2,10.44348]
[1725516756744,0.00622652,2408.3,2408.2,4.44348]
[1725516757344,0.00622652,2408.3,2408.2,4.1528]
[1725516758041,0.00622652,2408.3,2408.1,0.3707]
[1725516759133,0.00622652,2408.3,2408.1,0.66139]
[1725516759347,0.00622652,2408.3,2408.1,4.81419]
[1725516760746,0.00622652,2408.3,2408.2,0.29068]
[1725516761149,0.00622652,2408.3,2408.2,4.44268]
[1725516762445,4.1528,2408.2,2407.8,0.00622652]
[1725516762649,0.72684,2407.8,2406.8,1.08446993]
[1725516762846,2.87,2406.9,2406.3,3.49871]
[1725516763051,2.87,2406.6,2406.3,3.49871]
[1725516763353,2.87,2406.6,2406.4,0.2909]
[1725516763552,2.87,2406.6,2406.3,7.66013652]
[1725516763750,2.87,2406.6,2406.3,3.50493652]
[1725516763947,2.87,2406.6,2406.3,3.21402652]
[1725516764140,2.87,2406.6,2406.3,0.00622652]
[1725516765347,2.87,2406.4,2406.3,0.00622652]
[1725516768065,0.8448146,2407.3,2406.3,0.00622652]
[1725516768066,3.2078,2407.5,2406.3,6.00622652]
[1725516768361,6.0778,2407.5,2406.7,3.2078]
[1725516768566,6.0778,2407.5,2406.6,2.87]
[1725516768567,6.0778,2407.5,2407.0,0.29082]
[1725516768747,6.36857,2407.5,2406.9,0.29083]
[1725516769258,0.00622652,2407.4,2406.9,0.29083]
[1725516769763,0.00622652,2407.4,2407.0,0.29082]
[1725516770258,0.00622652,2407.4,2406.9,0.29083]
[1725516770755,0.00622652,2407.4,2407.0,0.29083]
[1725516772959,0.00622652,2407.4,2406.9,0.29083]
[1725516773761,0.00622652,2407.4,2407.0,0.29083]
[1725516774659,0.00622652,2407.4,2406.8,41.5542]
[1725516774861,0.00622652,2407.4,2407.1,0.29081]
[1725516778259,0.00622652,2407.4,2407.2,0.2908]
[1725516778567,0.00622652,2407.4,2407.3,0.67649]
[1725516779055,0.00622652,2407.4,2407.3,4.83009]
[1725516780361,0.00622652,2407.4,2407.3,0.3857]
[1725516781462,0.00622652,2407.4,2407.3,0.7689]
[1725516783367,0.00622652,2407.4,2407.3,1.05969]
[1725516783754,0.00622652,2407.4,2407.3,0.7689]
[1725516784165,0.00622652,2407.4,2407.0,0.29082]
[1725516784359,2.87,2407.3,2407.0,0.7464]
[1725516784567,3.2078,2407.2,2407.0,0.3892]
[1725516784764,3.86751,2407.2,2406.6,0.7679]
[1725516784961,0.29082,2407.1,2406.7,40.8]
[1725516785266,3.2078,2406.9,2406.6,0.7679]
[1725516785566,3.2078,2406.9,2406.6,1.05877]
[1725516785768,3.2078,2406.9,2406.6,0.7679]
[1725516786965,3.2078,2406.9,2406.6,1.05878]
[1725516787163,3.2078,2406.9,2406.7,0.29086]
[1725516787370,3.2078,2406.9,2406.6,1.05877]
[1725516787565,6.36861,2407.2,2406.7,0.29086]
[1725516788071,0.29082,2407.1,2406.6,1.05877]
[1725516788381,0.29082,2407.1,2406.7,0.29086]
[1725516788665,0.29082,2407.1,2406.6,1.05877]
[1725516789364,6.0778,2407.2,2406.7,0.29086]
[1725516789770,6.36861,2407.2,2406.7,0.29086]
[1725516789968,0.29082,2407.1,2406.7,0.29086]
[1725516791065,3.2078,2406.9,2406.6,0.7679]
[1725516791573,3.49864,2406.9,2406.6,0.7679]
[1725516791968,3.2078,2406.9,2406.6,0.7679]
[1725516793179,3.2078,2406.8,2406.6,0.7679]
[1725516793471,3.2078,2406.8,2406.6,1.05877]
[1725516793673,3.2078,2406.8,2406.5,0.29088]
[1725516794677,3.2078,2406.8,2406.6,0.29088]
[1725516796078,0.29105,2405.2,2405.0,0.49186993]
[1725516796374,0.29105,2405.2,2404.2,3.99162222]
[1725516796375,3.2078,2405.1,2404.3,0.97601087]
[1725516796570,2.87,2404.4,2404.3,0.97601087]
[1725516796772,3.2078,2404.7,2404.6,3.32458157]
[1725516796967,6.0778,2404.7,2404.6,3.32458157]
[1725516798868,3.2078,2404.7,2404.6,3.61570157]
[1725516799066,3.2078,2404.7,2404.6,3.32458157]
[1725516799578,6.0778,2404.7,2404.6,3.32458157]
[1725516800080,3.2078,2404.7,2404.6,3.32458157]
[1725516800378,3.2078,2404.7,2404.6,3.61570157]
[1725516800783,3.2078,2404.7,2404.6,3.32458157]
[1725516801773,3.2078,2404.7,2404.4,0.00622652]
[1725516801774,9.49891,2404.7,2404.4,0.00622652]
[1725516802083,3.2078,2404.7,2404.4,3.33080809]
[1725516802882,3.2078,2404.7,2404.4,3.62194809]
[1725516803388,3.2078,2404.7,2404.4,3.33080809]
[1725516804081,3.2078,2404.7,2404.4,3.62194809]
[1725516804283,3.2078,2404.7,2404.4,3.33080809]
[1725516804480,3.2078,2404.7,2404.4,3.62194809]
[1725516805272,3.2078,2404.7,2404.5,0.29113]
[1725516805887,3.2078,2404.7,2404.4,0.29736652]
[1725516806182,3.2078,2404.7,2404.4,3.62194809]
[1725516806682,3.2078,2404.7,2404.4,3.33080809]
[1725516807084,3.2078,2404.7,2404.4,3.62194809]
[1725516808581,3.2078,2404.7,2404.5,0.29113]
[1725516808984,3.2078,2404.7,2404.4,0.29736652]
[1725516809183,3.2078,2404.7,2404.4,3.62194809]
[1725516809584,3.2078,2404.5,2404.4,3.62194809]
[1725516811893,17.197,2404.5,2403.3,4.197]
[1725516812190,3.2078,2404.1,2404.0,0.29119]
[1725516812690,3.2078,2404.1,2404.0,3.61577157]
[1725516813091,3.2078,2404.4,2404.3,0.29115]
[1725516813392,3.2078,2404.4,2404.3,3.61573157]
[1725516821393,3.2078,2404.4,2404.3,3.32458157]
[1725516822101,3.2078,2404.4,2404.3,3.61573157]
[1725516822799,3.2078,2404.4,2404.3,3.32458157]
[1725516823499,3.2078,2404.4,2404.3,3.61573157]
[1725516837802,4.2078,2404.4,2404.3,3.61573157]
[1725516844104,4.2078,2404.4,2404.3,3.97643157]
[1725516844613,4.2078,2404.4,2404.3,4.35273157]
[1725516850017,2.88,2404.7,2404.3,4.35273157]
[1725516850018,3.2078,2404.7,2404.6,0.29112]
[1725516850212,3.2078,2404.7,2404.6,3.61570157]
[1725516850523,6.0878,2404.7,2404.6,3.32458157]
[1725516850918,12.0878,2404.7,2404.4,0.29114]
[1725516851228,2.88,2404.5,2404.4,3.61572157]
[1725516856319,3.2078,2404.7,2404.6,0.29112]
[1725516856520,6.0878,2404.7,2404.6,0.29112]
[1725516857926,4.4078,2404.7,2404.6,0.29112]
[1725516860226,4.4078,2404.7,2404.3,0.737]
[1725516860420,3.2078,2404.7,2404.6,0.29112]
[1725516862040,3.2078,2404.7,2404.6,4.81570157]
[1725516862332,3.2078,2404.7,2404.6,6.42792613]
[1725516862532,3.2078,2404.7,2404.6,5.22792613]
[1725516863623,3.2078,2404.7,2404.6,3.61570157]
[1725516863824,4.4078,2404.7,2404.6,3.61570157]
[1725516864031,3.2078,2404.7,2404.6,3.61570157]
[1725516874629,0.00622652,2404.9,2404.8,0.29109]
[1725516874836,4.111,2405.6,2405.5,0.29101]
[1725516875029,2.88,2405.7,2405.5,0.291]
[1725516875738,0.1035,2405.8,2405.5,0.6689]
[1725516875739,2.88,2405.6,2405.5,0.6689]
[1725516877737,2.88,2405.6,2405.4,0.0062396]
[1725516878342,2.88,2405.6,2405.4,0.2972596]
[1725516878846,2.88,2405.6,2405.5,0.29101]
[1725516879042,2.88,2405.6,2405.4,0.2972496]
[1725516879544,2.88,2405.6,2405.5,0.29101]
[1725516880344,2.88,2405.6,2405.4,0.2972496]
[1725516880544,2.88,2405.6,2405.4,0.0062396]
[1725516881544,2.88,2405.6,2405.4,0.2972596]
[1725516882245,2.88,2405.6,2405.5,0.29101]
[1725516884638,2.88,2405.6,2405.4,0.2972596]
[1725516885142,2.88,2405.6,2405.4,0.0062396]
[1725516885848,2.88,2405.6,2405.4,0.2972596]
[1725516887843,2.88,2405.6,2405.5,0.29101]
[1725516888041,1.2,2405.6,2405.5,0.29101]
[1725516891247,0.1097396,2405.8,2405.7,0.29099]
[1725516891442,1.3097396,2405.8,2405.7,0.29099]
[1725516891647,5.4665396,2405.8,2405.7,0.29099]
[1725516893951,1.2062396,2405.8,2405.7,0.29099]
[1725516895947,4.111,2406.5,2405.7,13.65559]
[1725516896252,4.111,2406.5,2406.0,3.2078]
[1725516896457,3.2078,2406.3,2405.6,0.3723]
[1725516896759,3.2078,2406.3,2405.9,0.29096]
[1725516897253,3.2140396,2406.3,2405.9,0.29096]
[1725516897449,1.2,2406.0,2405.9,0.29096]
[1725516898557,1.2,2406.0,2405.6,0.3723]
[1725516898758,1.2,2405.7,2405.6,0.3723]
[1725516899257,1.2,2405.7,2405.6,0.6633]
[1725516900251,1.2,2405.7,2405.6,0.3723]
[1725516900652,4.4078,2405.7,2405.4,0.0062396]
[1725516900848,1.2,2405.5,2405.4,0.0062396]
[1725516901258,5.3576,2405.5,2405.4,0.0062396]
[1725516901862,5.7491,2405.5,2405.4,0.0062396]
[1725516904062,7.4191,2405.5,2405.4,0.0062396]
[1725516904263,3.2615,2405.5,2405.4,0.0062396]
[1725516905354,7.4191,2405.5,2405.4,0.0062396]
[1725516907866,3.2615,2405.5,2405.4,0.0062396]
[1725516911079,7.4191,2405.5,2405.4,0.0062396]
[1725516912273,2.87,2405.5,2405.4,0.2972596]
[1725516912461,6.0778,2405.7,2405.4,0.0062396]
[1725516912662,6.0778,2405.7,2405.6,0.291]
[1725516912863,2.87,2405.7,2405.6,0.291]
[1725516913269,2.87,2405.7,2405.5,0.6742]
[1725516914164,2.87,2405.7,2405.6,0.291]
[1725516914365,2.87,2405.9,2405.8,0.29097]
[1725516914570,2.87,2405.9,2405.7,0.29098]
[1725516914874,2.87,2405.8,2405.6,1.05139]
[1725516915267,2.87,2405.8,2405.6,0.7604]
[1725516917272,3.2347,2405.8,2405.6,0.7604]
[1725516917468,3.2347,2405.8,2405.6,0.3845]
[1725516919070,3.2347,2405.8,2405.6,0.6755]
[1725516920076,2.87,2405.8,2405.7,0.29099]
[1725516920270,2.87,2405.8,2405.6,0.67549]
[1725516920471,2.87,2405.8,2405.6,0.3845]
[1725516920668,2.87,2405.8,2405.7,0.29099]
[1725516921470,2.87,2405.8,2405.6,0.67549]
[1725516923979,1.2,2405.7,2405.6,0.67549]
[1725516925471,4.1568,2405.6,2404.9,1.08763075]
[1725516925674,4.1568,2405.6,2404.9,0.29108]
[1725516925675,1.2,2405.0,2404.9,0.29108]
[1725516927067,3.9735,2405.6,2405.1,0.29105]
[1725516927269,1.2,2405.2,2405.1,0.29105]
[1725516929570,1.2,2405.2,2405.0,0.29106]
[1725516930482,1.2,2405.2,2405.1,0.29106]
[1725516930675,1.2,2405.2,2405.0,0.29106]
[1725516930870,1.2,2405.1,2405.0,0.29106]
[1725516932778,1.2,2405.1,2405.0,4.44866]
[1725516933883,1.2,2405.2,2405.1,0.29105]
[1725516934183,1.2,2405.2,2405.0,0.29106]
[1725516934374,1.2,2405.2,2405.1,0.29106]
[1725516935087,1.2,2405.2,2405.0,0.29106]
[1725516935290,1.2,2405.1,2404.9,0.29107]
[1725516935480,1.2,2405.1,2405.0,0.29107]
[1725516935785,1.2,2405.1,2404.9,0.29108]
[1725516939284,1.2,2405.1,2405.0,0.29107]
[1725516939889,1.2,2405.1,2404.9,0.29107]
[1725516940279,1.2,2405.1,2405.0,0.29107]
[1725516940482,1.2,2405.1,2404.9,0.29107]
[1725516942889,1.2,2405.1,2404.8,4.26979]
[1725516944090,1.2,2405.1,2404.9,0.29108]
[1725516944687,1.2,2405.1,2404.8,1.06199]
[1725516944993,1.2,2404.9,2404.8,1.06199]
[1725516947989,1.2,2404.9,2404.8,0.7709]
[1725516948795,0.0062396,2405.1,2404.9,0.29108]
[1725516948796,1.2062396,2405.1,2404.9,0.29108]
[1725516949001,0.0062396,2405.1,2404.9,0.29108]
[1725516949495,0.0062396,2405.1,2405.0,0.29107]
[1725516949792,0.0062396,2405.1,2404.9,0.29108]
[1725516950384,0.0062396,2405.1,2405.0,0.29107]
[1725516950590,0.0062396,2405.1,2404.9,0.29107]
[1725516951899,1.2062396,2405.1,2404.8,0.7709]
[1725516952093,1.2,2404.9,2404.8,0.7709]
[1725516960301,1.2062396,2405.1,2404.8,1.06199]
[1725516961995,1.2062396,2405.1,2404.8,0.7709]
[1725516962401,1.2,2404.9,2404.8,0.7709]
[1725516963706,1.2,2404.9,2404.8,0.3924]
[1725516963904,1.5748,2404.9,2404.8,0.3924]
[1725516965809,1.2,2405.0,2404.8,0.68349]
[1725516966804,1.2,2405.0,2404.8,0.3924]
[1725516967001,1.2,2405.0,2404.8,0.68349]
[1725516967911,1.2,2405.0,2404.9,0.29108]
[1725516968410,0.0062396,2405.1,2404.9,0.29108]
[1725516968600,0.0062396,2405.1,2405.0,0.3581]
[1725516971909,1.2062396,2405.1,2405.0,0.3581]
[1725516973305,1.2062396,2405.1,2404.8,42.57112075]
[1725516973502,1.2062396,2405.1,2404.9,1.74171075]
[1725516975410,1.2062396,2405.1,2404.8,42.80462456]
[1725516975411,1.2062396,2405.1,2404.8,1.48003075]
[1725516975711,1.2062396,2405.1,2404.7,1.45687035]
[1725516975712,1.2,2404.9,2404.7,1.45687035]
[1725516975899,1.2,2404.9,2404.7,0.3692396]
[1725516976207,0.3755,2404.8,2404.7,0.3692396]
[1725516979105,0.3755,2404.8,2404.7,0.0062396]
[1725516981807,15.96053,2404.8,2404.7,0.0062396]
[1725516982003,15.96053,2404.8,2404.0,2.71976852]
[1725516982004,1.2,2404.5,2404.1,1.47783075]
[1725516982207,1.2,2404.2,2404.1,0.3902]
[1725516982608,4.111,2404.8,2404.4,0.29113]
[1725516982804,4.40209,2404.8,2404.5,1.1526]
[1725516983109,4.40209,2404.8,2404.5,0.7792]
[1725516983110,1.2,2404.6,2404.5,0.7792]
[1725516984816,5.3584,2404.6,2404.2,3.87654154]
[1725516985006,4.111,2404.8,2404.2,3.58538154]
[1725516985007,1.2,2404.4,2404.2,3.58538154]
[1725516985201,1.2,2404.4,2404.2,3.87654154]
[1725516988816,1.2,2404.4,2404.2,0.66874154]
[1725516989013,4.111,2404.8,2404.2,0.37758154]
[1725516989214,4.111,2404.8,2404.5,0.29113]
[1725516989518,1.2,2404.6,2404.5,0.29113]
[1725516990126,1.2,2404.6,2404.2,0.37758154]
[1725516990422,1.2,2404.4,2404.2,0.37758154]
[1725516990825,1.2,2404.4,2404.3,0.29115]
[1725516991619,0.3678,2404.9,2404.8,0.29109]
[1725516991921,1.5678,2404.9,2404.6,0.29112]
[1725516992115,1.2,2404.7,2404.5,3.49892]
[1725516992318,1.2,2404.7,2404.4,0.29114]
[1725516992624,1.2,2404.5,2404.4,0.29114]
[1725516994626,1.2,2404.7,2404.6,0.29111]
[1725516995712,1.2,2404.7,2404.6,0.67521]
[1725516997325,1.2,2404.7,2404.6,0.3841]
[1725516999019,5.3584,2404.7,2404.4,3.2078]
[1725516999224,3.86668,2404.9,2404.4,0.29114]
[1725516999225,1.2,2404.5,2404.4,0.29114]
[1725517001318,1.2,2404.5,2404.3,0.3826]
[1725517002024,1.2,2404.5,2404.3,0.67375]
[1725517004526,1.2,2404.5,2404.3,0.3826]